bitfinex/quotes_SOLUSD_20250915
["timestamp","ask_amount","ask_price","bid_price","bid_amount"]
[1757927577706,30.47455661,233.61,233.5,0.69]
[1757927577921,30.47455661,233.61,233.52,0.14216157]
[1757927577922,26.0,233.61,233.52,0.14216157]
[1757927578106,26.18,233.64,233.53,0.69]
[1757927578427,0.18,233.7,233.56,13.73775558]
[1757927578732,0.18,233.7,233.59,0.14216157]
[1757927578907,26.0,233.66,233.52,20.0]
[1757927579222,26.18,233.66,233.56,0.69]
[1757927579603,0.18,233.66,233.56,0.69]
[1757927580536,26.0,233.68,233.57,0.14216157]
[1757927580710,0.18,233.71,233.59,0.14216157]
[1757927580912,12.87305027,233.72,233.59,0.14216157]
[1757927580913,12.87305027,233.72,233.61,15.12439691]
[1757927581102,0.18,233.77,233.63,0.14216157]
[1757927581301,0.18,233.77,233.64,0.69]
[1757927581529,0.21,233.75,233.64,0.69]
[1757927582221,26.03,233.75,233.64,0.69]
[1757927582533,0.18,233.74,233.64,0.69]
[1757927583201,0.18,233.74,233.65,4.27990584]
[1757927583621,26.03,233.75,233.66,0.69]
[1757927583816,0.18,233.74,233.59,0.14216157]
[1757927584107,26.0,233.71,233.57,4.97134149]
[1757927584306,0.18,233.7,233.57,15.67477086]
[1757927584517,0.18,233.7,233.58,0.69]
[1757927585327,0.18,233.69,233.58,4.97109609]
[1757927585629,4.27903291,233.7,233.58,4.97109609]
[1757927585630,0.18,233.68,233.58,4.97109609]
[1757927585826,0.18,233.68,233.58,0.69]
[1757927586220,0.18,233.67,233.55,0.69]
[1757927586524,39.59559401,233.69,233.55,0.69]
[1757927586525,26.0,233.64,233.55,0.69]
[1757927587031,26.18,233.64,233.55,0.69]
[1757927587218,0.18,233.64,233.55,0.69]
[1757927587530,0.18,233.64,233.55,4.97169131]
[1757927587728,0.18,233.64,233.55,0.69]
[1757927587934,0.18,233.64,233.55,4.97165385]
[1757927588137,0.18,233.64,233.55,0.69]
[1757927588839,26.0,233.6,233.51,0.67]
[1757927589132,26.18,233.6,233.51,0.67]
[1757927589928,26.18,233.6,233.5,4.28261708]
[1757927591739,26.18,233.6,233.49,0.67]
[1757927591740,0.18,233.59,233.49,0.67]
[1757927591926,26.0,233.56,233.49,0.67]
[1757927592319,26.18,233.56,233.47,0.06]
[1757927592515,26.0,233.6,233.48,0.67]
[1757927592719,0.18,233.65,233.5,0.14216157]
[1757927593017,0.18,233.65,233.52,0.14216157]
[1757927593215,26.0,233.64,233.53,0.67]
[1757927593415,0.18,233.65,233.54,4.28192172]
[1757927593630,26.0,233.64,233.55,0.67]
[1757927593838,0.18,233.65,233.55,0.67]
[1757927594222,26.0,233.63,233.55,0.67]
[1757927594419,132.5,233.66,233.55,0.67]
[1757927594643,26.0,233.62,233.55,0.67]
[1757927595218,26.0,233.63,233.55,0.67]
[1757927595548,26.0,233.63,233.55,4.95169161]
[1757927595847,26.0,233.62,233.55,4.95169161]
[1757927596139,26.0,233.62,233.55,4.28169161]
[1757927596347,26.0,233.63,233.56,0.67]
[1757927598014,26.0,233.63,233.56,4.95151172]
[1757927598411,26.0,233.63,233.56,0.67]
[1757927598824,26.0,233.63,233.56,4.95155323]
[1757927599035,4.44583448,233.7,233.57,0.67]
[1757927599234,26.0,233.69,233.57,0.67]
[1757927599538,26.0,233.69,233.58,4.28118845]
[1757927599727,26.0,233.65,233.58,4.28118845]
[1757927600037,26.0,233.65,233.59,0.67]
[1757927600420,132.5,233.68,233.59,0.67]
[1757927600822,132.5,233.68,233.6,13.73775558]
[1757927601012,132.5,233.68,233.62,0.14216157]
[1757927601225,26.0,233.65,233.63,0.67]
[1757927601424,136.70062112,233.74,233.63,0.67]
[1757927601741,132.5,233.73,233.64,4.28008902]
[1757927601935,132.5,233.73,233.65,0.67]
[1757927602132,26.0,233.7,233.65,0.67]
[1757927602821,132.5,233.73,233.66,0.67]
[1757927603023,26.0,233.7,233.66,0.67]
[1757927603621,26.0,233.7,233.66,4.94965431]
[1757927604937,26.0,233.7,233.63,0.67]
[1757927605818,26.0,233.7,233.63,4.95017236]
[1757927606015,26.0,233.7,233.64,0.67]
[1757927606239,25.5,233.7,233.64,0.67]
[1757927606435,0.18,233.69,233.59,4.2809501]
[1757927606642,0.18,233.69,233.59,4.9509501]
[1757927607428,0.18,233.69,233.6,0.67]
[1757927608077,0.18,233.68,233.56,4.28155506]
[1757927608362,0.18,233.68,233.57,0.67]
[1757927608723,25.53,233.7,233.57,0.67]
[1757927608923,26.0,233.68,233.57,0.67]
[1757927609443,26.03,233.7,233.58,13.73775558]
[1757927609643,0.03,233.7,233.6,13.73775558]
[1757927609943,26.03,233.7,233.63,4.28027222]
[1757927610148,26.03,233.7,233.64,0.67]
[1757927610324,26.03,233.7,233.61,0.67]
[1757927610532,0.18,233.69,233.57,0.67]
[1757927612134,0.18,233.69,233.58,4.28118845]
[1757927612350,0.18,233.69,233.59,0.67]
[1757927612552,0.18,233.68,233.59,0.67]
[1757927613132,30.30906825,233.7,233.59,0.67]
[1757927613440,0.18,233.69,233.59,0.67]
[1757927613636,26.0,233.68,233.59,0.67]
[1757927614254,158.5,233.68,233.6,4.28082191]
[1757927614558,158.5,233.68,233.61,0.67]
[1757927616358,158.5,233.68,233.61,4.95059441]
[1757927616721,158.5,233.68,233.62,0.67]
[1757927619934,158.5,233.68,233.62,4.95038367]
[1757927620929,158.45,233.68,233.62,4.95038367]
[1757927621843,158.45,233.68,233.62,0.67]
[1757927622041,158.45,233.68,233.6,4.28064605]
[1757927622042,158.45,233.68,233.6,0.14216157]
[1757927622242,0.03,233.7,233.56,45.70725696]
[1757927622243,0.03,233.7,233.64,4.28008902]
[1757927622767,0.03,233.7,233.63,0.66]
[1757927622933,0.03,233.7,233.65,0.66]
[1757927623466,0.03,233.7,233.66,0.66]
[1757927624144,0.03,233.7,233.67,0.66]
[1757927624457,0.03,233.7,233.67,4.93942393]
[1757927624837,0.03,233.7,233.68,0.66]
[1757927625329,0.03,233.7,233.69,0.66]
[1757927625533,0.03,233.7,233.68,0.66]
[1757927626336,0.03,233.7,233.69,0.66]
[1757927631465,0.03,233.7,233.69,4.93917326]
[1757927632251,0.03,233.73,233.71,4.27880706]
[1757927632674,0.03,233.73,233.72,0.66]
[1757927632867,0.03,233.73,233.72,0.80216157]
[1757927633084,0.03,233.73,233.72,14.39775558]
[1757927634284,0.03,233.73,233.72,18.67637957]
[1757927634490,0.03,233.73,233.72,56.23637957]
[1757927634656,0.03,233.73,233.72,56.21637957]
[1757927635057,0.03,233.73,233.72,18.67637957]
[1757927635293,0.03,233.73,233.72,5.08078556]
[1757927635594,0.03,233.73,233.72,0.66]
[1757927635758,0.03,233.73,233.69,4.93900644]
[1757927635964,0.03,233.73,233.69,0.66]
[1757927636186,0.21,233.72,233.65,0.66]
[1757927636392,26.03,233.73,233.65,0.66]
[1757927636765,0.03,233.73,233.65,4.93981616]
[1757927636964,0.03,233.73,233.65,0.66]
[1757927638181,0.03,233.73,233.65,4.93985815]
[1757927638489,0.03,233.73,233.66,0.66]
[1757927640867,2.7,233.71,233.66,0.66]
[1757927641165,2.7,233.71,233.63,0.14216157]
[1757927641469,2.7,233.71,233.64,0.66]
[1757927642067,2.7,233.71,233.65,0.14216157]
[1757927642467,2.7,233.71,233.67,0.14216157]
[1757927642787,2.7,233.71,233.68,0.66]
[1757927643286,2.7,233.71,233.69,0.14216157]
[1757927643484,2.7,233.71,233.7,0.80216157]
[1757927644195,2.73,233.71,233.7,0.80216157]
[1757927644389,2.73,233.71,233.68,0.14216157]
[1757927644691,2.73,233.71,233.66,0.66]
[1757927644890,28.73,233.71,233.63,5.00027222]
[1757927645195,28.73,233.71,233.64,0.66]
[1757927646076,2.73,233.71,233.64,0.66]
[1757927646702,28.73,233.71,233.64,0.66]
[1757927647281,2.73,233.71,233.64,4.940087]
[1757927647977,2.73,233.71,233.64,4.280087]
[1757927648183,2.73,233.71,233.65,0.66]
[1757927649096,2.73,233.71,233.63,0.06]
[1757927649282,26.0,233.69,233.63,0.06]
[1757927649464,26.21,233.7,233.63,0.06]
[1757927650675,26.0,233.68,233.63,0.06]
[1757927651574,26.21,233.68,233.63,0.06]
[1757927651983,0.21,233.67,233.63,0.06]
[1757927652192,0.21,233.66,233.63,0.06]
[1757927653083,26.21,233.66,233.63,0.06]
[1757927653792,26.0,233.68,233.63,0.06]
[1757927654295,26.0,233.68,233.63,0.75]
[1757927654478,26.0,233.7,233.63,0.75]
[1757927654683,26.0,233.68,233.63,0.75]
[1757927655195,2.94,233.71,233.63,0.06]
[1757927655405,132.5,233.7,233.64,0.69]
[1757927655625,26.0,233.67,233.64,0.69]
[1757927655782,132.5,233.7,233.64,0.69]
[1757927655989,26.0,233.67,233.64,0.69]
[1757927656906,26.0,233.67,233.65,0.69]
[1757927657313,26.0,233.67,233.63,5.03026115]
[1757927657487,26.0,233.67,233.64,0.69]
[1757927658288,26.0,233.67,233.64,4.97005072]
[1757927658811,26.0,233.67,233.64,0.69]
[1757927659504,26.0,233.67,233.64,4.97000345]
[1757927661090,26.0,233.67,233.63,0.06]
[1757927661296,26.0,233.67,233.63,0.75]
[1757927661489,26.0,233.67,233.64,0.69]
[1757927662209,26.0,233.67,233.63,4.34015948]
[1757927662508,26.0,233.67,233.64,0.69]
[1757927662909,26.0,233.67,233.65,0.69]
[1757927663793,26.0,233.67,233.63,0.20216157]
[1757927664097,26.0,233.67,233.63,0.89216157]
[1757927664306,26.0,233.67,233.64,0.69]
[1757927664525,26.0,233.67,233.65,0.69]
[1757927665438,0.21,233.66,233.63,0.06]
[1757927665734,26.0,233.67,233.63,0.06]
[1757927666940,26.0,233.67,233.64,0.69]
[1757927667137,26.0,233.67,233.63,0.06]
[1757927667341,26.0,233.67,233.65,0.69]
[1757927668535,0.03,233.71,233.66,0.69]
[1757927668730,0.03,233.71,233.67,0.69]
[1757927668935,0.03,233.71,233.65,0.14216157]
[1757927669139,0.03,233.71,233.65,42.18976165]
[1757927669519,0.03,233.71,233.66,0.69]
[1757927670640,0.03,233.71,233.67,0.69]
[1757927671720,0.03,233.71,233.66,4.27970275]
[1757927671926,0.03,233.71,233.68,0.69]
[1757927672334,0.03,233.71,233.69,0.69]
[1757927673148,0.03,233.71,233.7,0.69]
[1757927674752,0.03,233.71,233.66,0.69]
[1757927674924,0.03,233.71,233.67,37.85]
[1757927675318,0.03,233.71,233.68,0.69]
[1757927675734,0.03,233.71,233.65,4.27975249]
[1757927675945,0.21,233.7,233.63,0.20216157]
[1757927677023,0.03,233.71,233.63,4.48238582]
[1757927677247,0.03,233.71,233.64,0.69]
[1757927679029,26.03,233.71,233.64,0.69]
[1757927679545,0.03,233.71,233.64,0.69]
[1757927679753,26.0,233.69,233.64,0.69]
[1757927680133,0.03,233.71,233.64,0.69]
[1757927680358,2.81007995,233.7,233.64,0.69]
[1757927680557,0.21,233.69,233.63,0.06]
[1757927680770,28.81007995,233.68,233.63,0.06]
[1757927680930,28.81007995,233.67,233.63,0.06]
[1757927681250,26.0,233.68,233.64,0.71]
[1757927681640,26.0,233.68,233.65,0.71]
[1757927681853,26.0,233.68,233.66,0.71]
[1757927683253,0.5,233.67,233.66,0.71]
[1757927685146,0.5,233.67,233.63,0.06]
[1757927685459,0.5,233.67,233.63,0.77]
[1757927685832,0.5,233.67,233.63,0.06]
[1757927686037,0.5,233.67,233.63,0.77]
[1757927686458,0.5,233.67,233.64,0.71]
[1757927687759,26.0,233.68,233.65,4.98987353]
[1757927687966,26.0,233.68,233.66,0.71]
[1757927688172,26.0,233.68,233.67,0.71]
[1757927689564,0.03,233.71,233.68,0.14216157]
[1757927689761,0.03,233.71,233.69,4.98917326]
[1757927689964,0.03,233.71,233.7,0.71]
[1757927692165,0.03,233.71,233.68,37.16216157]
[1757927692368,0.03,233.71,233.69,0.71]
[1757927693166,0.03,233.71,233.7,0.71]
[1757927693753,0.03,233.71,233.7,4.98899015]
[1757927694664,0.03,233.71,233.7,5.13115172]
[1757927696676,0.03,233.71,233.7,18.72674573]
[1757927699169,1e-08,233.74,233.71,13.73775558]
[1757927699360,1e-08,233.74,233.71,14.44775558]
[1757927699567,1e-08,233.74,233.73,0.14216157]
[1757927699965,1e-08,233.74,233.73,0.85216157]
[1757927700468,1e-08,233.74,233.73,14.44775558]
[1757927700666,1e-08,233.74,233.73,37.75216157]
[1757927700857,1e-08,233.74,233.73,42.0306025]
[1757927702992,1e-08,233.74,233.73,0.85216157]
[1757927703486,1e-08,233.74,233.73,37.73216157]
[1757927703791,1e-08,233.74,233.73,42.0106025]
[1757927704369,1e-08,233.74,233.73,5.1306025]
[1757927704570,1e-08,233.74,233.73,41.9906025]
[1757927705192,1e-08,233.74,233.73,37.71216157]
[1757927705371,1e-08,233.74,233.7,0.14216157]
[1757927705578,1e-08,233.74,233.71,36.86]
[1757927705771,1e-08,233.74,233.71,37.57]
[1757927706299,0.21,233.73,233.65,0.71]
[1757927706472,26.21,233.73,233.66,36.84]
[1757927706908,26.0,233.73,233.66,37.55]
[1757927707194,26.0,233.73,233.67,4.27953952]
[1757927707494,26.21,233.73,233.68,36.84]
[1757927707699,26.0,233.73,233.68,37.55]
[1757927707896,26.0,233.73,233.69,36.84]
[1757927708221,26.0,233.73,233.69,36.82]
[1757927708399,26.0,233.73,233.69,37.53]
[1757927708693,26.0,233.73,233.69,36.82]
[1757927708896,26.21,233.73,233.69,36.82]
[1757927709401,0.21,233.72,233.64,0.14216157]
[1757927709610,0.21,233.72,233.65,36.82]
[1757927709797,26.0,233.73,233.65,36.82]
[1757927710003,26.0,233.73,233.66,0.7]
[1757927711314,26.0,233.73,233.66,4.97964851]
[1757927712706,26.21,233.73,233.65,36.82]
[1757927712900,26.21,233.73,233.63,0.06]
[1757927712901,0.21,233.72,233.63,0.06]
[1757927713091,26.0,233.69,233.63,0.06]
[1757927713908,26.21,233.69,233.63,0.06]
[1757927717709,42.2538753,233.69,233.63,0.06]
[1757927717909,26.0,233.65,233.63,0.06]
[1757927719715,26.21,233.65,233.63,0.06]
[1757927720294,26.0,233.65,233.63,0.06]
[1757927724200,30.27998098,233.65,233.63,0.06]
[1757927724387,35.28777975,233.65,233.63,0.06]
[1757927724714,35.28777443,233.65,233.63,0.06]
[1757927724925,9.28777443,233.65,233.63,0.06]
[1757927725291,0.21,233.64,233.63,0.06]
[1757927725516,31.00779877,233.65,233.63,0.06]
[1757927725707,5.21779877,233.65,233.63,0.06]
[1757927725914,9.49778855,233.65,233.63,0.06]
[1757927726223,26.0,233.64,233.63,0.06]
[1757927726603,26.21,233.64,233.63,0.06]
[1757927727111,0.21,233.64,233.63,0.06]
[1757927728188,4.49008902,233.64,233.63,0.06]
[1757927728411,30.49008902,233.64,233.63,0.06]
[1757927729417,26.0,233.64,233.63,0.06]
[1757927729608,26.21,233.64,233.63,0.06]
[1757927730292,26.0,233.64,233.63,0.06]
[1757927730519,26.21,233.64,233.63,0.06]
[1757927730896,39.80559401,233.64,233.63,0.06]
[1757927731099,55.99253655,233.64,233.63,0.06]
[1757927731421,94.34945897,233.64,233.63,0.06]
[1757927731915,57.70945897,233.64,233.63,0.06]
[1757927732113,94.34945897,233.64,233.63,0.06]
[1757927733227,90.06936995,233.64,233.63,0.06]
[1757927733407,94.32945897,233.64,233.63,0.06]
[1757927734926,57.70945897,233.64,233.63,0.06]
[1757927735231,94.32945897,233.64,233.63,0.06]
[1757927735914,72.46559401,233.61,233.58,0.06]
[1757927736113,39.59559401,233.55,233.54,1e-08]
[1757927736296,92.21055357,233.55,233.54,1e-08]
[1757927736498,105.19055357,233.55,233.54,1e-08]
[1757927736697,107.97273593,233.55,233.54,1e-08]
[1757927737103,71.37273593,233.55,233.54,1e-08]
[1757927737323,105.19055357,233.55,233.54,1e-08]
[1757927737514,92.46271514,233.55,233.54,1e-08]
[1757927737715,94.18052236,233.55,233.54,1e-08]
[1757927738025,57.58052236,233.55,233.54,1e-08]
[1757927738327,94.18052236,233.55,233.54,1e-08]
[1757927738527,57.58052236,233.55,233.54,1e-08]
[1757927738728,94.18052236,233.55,233.54,1e-08]
[1757927738920,53.04662241,233.55,233.54,1e-08]
[1757927739107,76.0310284,233.55,233.54,1e-08]
[1757927739428,45.02322963,233.55,233.54,0.68000001]
[1757927739636,45.02322963,233.55,233.54,1e-08]
[1757927740339,8.44322963,233.55,233.54,1e-08]
[1757927741718,26.32056202,233.55,233.54,1e-08]
[1757927741922,31.32836079,233.55,233.54,1e-08]
[1757927742129,63.60662241,233.55,233.54,1e-08]
[1757927742819,67.88836079,233.55,233.54,1e-08]
[1757927743325,63.60662241,233.55,233.54,1e-08]
[1757927743529,67.88836079,233.55,233.54,1e-08]
[1757927744239,67.86836079,233.55,233.54,1e-08]
[1757927744535,63.58662241,233.55,233.54,1e-08]
[1757927745336,13.4510284,233.55,233.54,1e-08]
[1757927745538,49.9910284,233.55,233.54,0.68000001]
[1757927745738,8.44322963,233.55,233.54,0.68000001]
[1757927746047,5.00779877,233.61,233.54,0.68000001]
[1757927746224,6.72542241,233.63,233.54,0.68000001]
[1757927746414,5.00779877,233.62,233.54,0.68000001]
[1757927746617,26.0,233.59,233.54,4.96187082]
[1757927746817,5.00779877,233.62,233.55,0.68]
[1757927747242,26.0,233.59,233.55,0.68]
[1757927747444,6.72542241,233.63,233.55,0.68]
[1757927747649,4.28187082,233.64,233.55,0.68]
[1757927747955,6.75689318,233.68,233.56,0.14216157]
[1757927748322,6.75689318,233.68,233.57,0.68]
[1757927748536,6.75689318,233.68,233.58,14.98415959]
[1757927748837,6.75689318,233.68,233.59,0.68]
[1757927749420,5.00779877,233.71,233.6,0.14216157]
[1757927749620,5.00779877,233.71,233.61,0.68]
[1757927750225,26.0,233.68,233.61,0.68]
[1757927750726,26.0,233.68,233.62,4.28045544]
[1757927751039,26.0,233.68,233.63,0.72]
[1757927752319,26.0,233.64,233.54,1e-08]
[1757927752524,26.0,233.6,233.56,0.72]
[1757927753019,26.0,233.6,233.57,0.72]
[1757927753549,26.0,233.6,233.58,0.72]
[1757927753756,26.0,233.6,233.59,0.72]
[1757927754346,26.0,233.6,233.55,0.72]
[1757927754518,26.0,233.6,233.56,0.72]
[1757927754726,26.0,233.59,233.56,0.72]
[1757927755954,26.0,233.59,233.54,1e-08]
[1757927756321,26.0,233.6,233.54,0.72000001]
[1757927756526,26.0,233.58,233.54,0.72000001]
[1757927757328,26.0,233.58,233.55,0.72]
[1757927757537,26.0,233.58,233.56,0.72]
[1757927757738,132.5,233.6,233.57,0.72]
[1757927757935,139.25689318,233.59,233.54,1e-08]
[1757927758132,26.0,233.56,233.54,1e-08]
[1757927758332,26.0,233.56,233.54,0.72000001]
[1757927758859,26.0,233.56,233.54,1e-08]
[1757927759358,26.0,233.56,233.54,0.72000001]
[1757927759736,26.11,233.56,233.54,1e-08]
[1757927759940,11.76469195,233.55,233.54,1e-08]
[1757927763159,66.15202434,233.55,233.54,1e-08]
[1757927763456,73.96542121,233.55,233.54,1e-08]
[1757927764259,37.42325964,233.55,233.54,1e-08]
[1757927764559,73.69325964,233.55,233.54,1e-08]
[1757927764763,70.90800542,233.55,233.54,1e-08]
[1757927764952,11.76469195,233.55,233.54,1e-08]
[1757927767053,16.04643033,233.55,233.54,1e-08]
[1757927767240,11.76469195,233.55,233.54,1e-08]
[1757927767445,0.11,233.55,233.54,1e-08]
[1757927767765,35.04016699,233.55,233.54,1e-08]
[1757927767951,37.82531304,233.55,233.54,1e-08]
[1757927768331,39.54297273,233.55,233.54,1e-08]
[1757927768749,39.54297273,233.55,233.52,1e-08]
[1757927768750,33.59559401,233.53,233.52,1e-08]
[1757927768958,21.40888271,233.53,233.52,1e-08]
[1757927769128,89.88357466,233.53,233.52,1e-08]
[1757927769333,26.14216157,233.5,233.49,0.06]
[1757927769558,77.29199957,233.5,233.49,0.06]
[1757927769756,81.57465481,233.5,233.49,0.06]
[1757927769969,13.73775558,233.49,233.31,4.2861429]
[1757927770259,33.43357466,233.49,233.31,4.2861429]
[1757927770464,13.73775558,233.45,233.3,0.2]
[1757927770770,26.0,233.38,233.3,0.2]
[1757927770946,26.0,233.36,233.3,0.2]
[1757927771732,26.0,233.34,233.3,0.2]
[1757927772161,26.0,233.34,233.3,4.486274]
[1757927772340,26.0,233.37,233.3,4.486274]
[1757927773946,26.0,233.37,233.3,0.2]
[1757927775270,26.0,233.37,233.3,4.48631611]
[1757927775454,26.0,233.37,233.3,0.2]
[1757927776037,30.28506625,233.37,233.3,0.2]
[1757927776244,35.55286502,233.37,233.3,0.2]
[1757927777476,12.02469195,233.36,233.3,0.2]
[1757927777694,26.0,233.33,233.3,0.2]
[1757927777889,31.26779877,233.33,233.3,0.2]
[1757927778550,12.02469195,233.32,233.3,0.2]
[1757927779479,16.31070243,233.32,233.3,0.2]
[1757927780460,1.71913613,233.31,233.3,0.2]
[1757927780874,5.26779877,233.32,233.3,0.2]
[1757927781282,26.0,233.32,233.3,0.2]
[1757927782254,26.0,233.31,233.3,0.2]
[1757927782864,26.0,233.32,233.3,0.2]
[1757927783775,26.0,233.31,233.3,0.2]
[1757927784156,1.71876679,233.34,233.3,0.2]
[1757927784357,6.75689318,233.39,233.3,4.48630744]
[1757927784665,1.7183976,233.4,233.3,4.48630744]
[1757927785082,26.0,233.38,233.3,4.48630744]
[1757927785763,10.77702015,233.41,233.3,4.48630744]
[1757927785954,47.03702015,233.41,233.31,0.14216157]
[1757927786682,26.0,233.38,233.3,14.21461812]
[1757927786887,12.88687472,233.43,233.3,14.21461812]
[1757927787056,12.88687472,233.43,233.31,13.59559401]
[1757927787557,26.0,233.4,233.32,15.00085718]
[1757927787757,9.55161155,233.44,233.32,15.00085718]
[1757927787990,5.26779877,233.44,233.32,15.00085718]
[1757927788311,26.0,233.43,233.32,15.00085718]
[1757927788475,19.6421074,233.46,233.33,13.59559401]
[1757927788781,26.0,233.43,233.34,0.14216157]
[1757927789474,26.0,233.45,233.35,4.28540818]
[1757927789851,26.0,233.45,233.35,14.99892864]
[1757927790855,26.0,233.45,233.33,18.023438]
[1757927791082,26.0,233.45,233.33,0.14216157]
[1757927791381,26.0,233.45,233.33,4.4279218]
[1757927792164,26.0,233.44,233.28,36.22]
[1757927792395,31.26779877,233.44,233.28,0.14216157]
[1757927792596,26.0,233.4,233.28,0.14216157]
[1757927793097,26.0,233.4,233.3,13.73775558]
[1757927793593,26.0,233.4,233.32,0.14216157]
[1757927793897,26.0,233.4,233.31,4.2861429]
[1757927794983,26.0,233.4,233.3,4.42848818]
[1757927795496,26.0,233.4,233.3,15.14430472]
[1757927795702,132.5,233.41,233.32,0.14216157]
[1757927795871,26.0,233.38,233.32,0.14216157]
[1757927796190,36.18,233.48,233.32,0.14216157]
[1757927796671,26.0,233.45,233.32,0.14216157]
[1757927797187,26.0,233.45,233.35,0.14216157]
[1757927797677,0.5,233.43,233.35,0.14216157]
[1757927797992,0.03,233.47,233.41,0.14216157]
[1757927799293,0.03,233.47,233.43,0.14216157]
[1757927799680,0.03,233.47,233.43,13.73775558]
[1757927800913,0.03,233.47,233.46,0.14216157]
[1757927801509,0.03,233.47,233.46,4.42555058]
[1757927801812,0.03,233.47,233.46,0.14216157]
[1757927803012,0.03,233.47,233.46,18.02114459]
[1757927807706,0.03,233.55,233.48,0.14216157]
[1757927808004,0.03,233.55,233.5,13.73775558]
[1757927808791,0.03,233.55,233.52,13.73775558]
[1757927811006,0.03,233.55,233.54,13.73775558]
[1757927811206,0.03,233.55,233.54,49.79775558]
[1757927813119,0.03,233.55,233.54,54.0796773]
[1757927813618,0.03,233.62,233.57,26.0]
[1757927813814,0.03,233.62,233.58,49.77775558]
[1757927815231,0.03,233.62,233.59,18.01876076]
[1757927816915,0.03,233.62,233.59,18.44686127]
[1757927817931,0.03,233.63,233.62,39.73775558]
[1757927818140,0.03,233.63,233.62,75.75775558]
[1757927819635,0.03,233.67,233.63,13.73775558]
[1757927820219,0.03,233.67,233.64,36.14216157]
[1757927820742,0.03,233.67,233.66,0.14216157]
[1757927822942,0.03,233.67,233.59,10.70232008]
[1757927823150,0.03,233.67,233.61,13.59559401]
[1757927823445,0.03,233.67,233.62,35.96]
[1757927823649,0.03,233.67,233.55,14.98608434]
[1757927823818,0.03,233.67,233.56,49.55559401]
[1757927824853,0.03,233.67,233.59,0.14216157]
[1757927825159,0.03,233.67,233.6,35.96]
[1757927825449,0.03,233.67,233.59,4.28090216]
[1757927825952,0.11,233.66,233.6,35.96]
[1757927826329,0.03,233.67,233.57,0.14216157]
[1757927826654,0.11,233.65,233.46,0.06]
[1757927826818,0.11,233.65,233.55,0.69]
[1757927827156,0.11,233.65,233.56,35.94]
[1757927827336,0.11,233.64,233.52,13.59559401]
[1757927827531,26.11,233.63,233.53,35.94]
[1757927827735,0.11,233.62,233.54,0.14216157]
[1757927827915,0.11,233.61,233.51,0.69]
[1757927828123,0.11,233.6,233.52,35.94]
[1757927828420,0.11,233.59,233.48,0.69]
[1757927828620,32.19118206,233.58,233.48,35.94]
[1757927828822,0.11,233.57,233.48,35.94]
[1757927829034,0.11,233.56,233.48,35.94]
[1757927829354,0.11,233.55,233.48,35.94]
[1757927829561,0.11,233.54,233.48,35.94]
[1757927829745,26.11,233.53,233.46,0.06]